lending/lending_fUSD_20260124
["ID","MTS","AMOUNT","RATE_DAILY","PERIOD"]
[403160578,1769219446705,-500.0,0.00017099,2]
[403160579,1769219446719,-250.0,0.00017099,2]
[403160580,1769219446728,-500.0,0.00017099,2]
[403160581,1769219446737,-263.81899033,0.00017099,2]
[403160582,1769219446745,-262.4243789,0.00017099,2]
[403160583,1769219446757,-151.0,0.00017099,2]
[403160584,1769219446766,-250.0,0.00017099,2]
[403160585,1769219446775,-151.0,0.00017099,2]
[403160586,1769219446784,-250.0,0.00017099,2]
[403160587,1769219446793,-151.0,0.00017099,2]
[403160588,1769219446803,-250.0,0.00017099,2]
[403160589,1769219446812,-151.0,0.00017099,2]
[403160590,1769219446821,-250.0,0.00017099,2]
[403160591,1769219446829,-275.69570179,0.00017099,2]
[403160592,1769219446838,-151.0,0.00017099,2]
[403160593,1769219446847,-151.0,0.00017099,2]
[403160594,1769219446856,-151.0,0.00017099,2]
[403160595,1769219446866,-151.0,0.00017099,2]
[403160596,1769219446875,-151.0,0.00017099,2]
[403160597,1769219446884,-250.0,0.00017099,2]
[403160598,1769219446893,-250.0,0.00017099,2]
[403160599,1769219446902,-151.0,0.00017099,2]
[403160600,1769219446911,-250.0,0.00017099,2]
[403160601,1769219446921,-151.0,0.00017099,2]
[403160602,1769219446931,-250.0,0.00017099,2]
[403160603,1769219446940,-250.0,0.00017099,2]
[403160604,1769219446949,-250.0,0.00017099,2]
[403160605,1769219446958,-250.0,0.00017099,2]
[403160606,1769219446967,-250.0,0.00017099,2]
[403160607,1769219446977,-250.0,0.00017099,2]
[403160608,1769219446986,-250.0,0.00017099,2]
[403160609,1769219446995,-250.0,0.00017099,2]
[403160610,1769219447004,-500.0,0.00017099,2]
[403160611,1769219447013,-500.0,0.00017099,2]
[403160612,1769219447023,-589.05491571,0.00017099,2]
[403160613,1769219447032,-326.51,0.00017106,2]
[403160614,1769219447042,-1000.0,0.00017112,2]
[403160615,1769219447051,-2475.92639888,0.00017136,2]
[403160616,1769219447061,-7533.25288006,0.00017136,2]
[403160617,1769219447069,-484.37,0.00017141,2]
[403160618,1769219447078,-200.0,0.00017143,2]
[403160619,1769219447087,-500.0,0.00017151,2]
[403160620,1769219447096,-150.0,0.00017178,2]
[403160621,1769219447105,-1230.49,0.00017178,2]
[403160622,1769219447114,-1230.49,0.00017178,2]
[403160623,1769219447123,-150.0,0.00017178,2]
[403160624,1769219447132,-1208.84,0.00017178,2]
[403160625,1769219447141,-150.0,0.00017178,2]
[403160626,1769219447153,-150.0,0.00017178,2]
[403160627,1769219447161,-150.0,0.00017178,2]
[403160628,1769219447170,-150.0,0.00017178,2]
[403160629,1769219447179,-150.0,0.00017178,2]
[403160630,1769219447188,-150.0,0.00017178,2]
[403160631,1769219447197,-150.0,0.00017178,2]
[403160632,1769219447206,-150.0,0.00017178,2]
[403160633,1769219447214,-150.0,0.00017178,2]
[403160634,1769219447223,-150.0,0.00017178,2]
[403160635,1769219447232,-150.0,0.00017178,2]
[403160636,1769219447241,-150.0,0.00017178,2]
[403160637,1769219447250,-150.0,0.00017178,2]
[403160638,1769219447259,-150.0,0.00017178,2]
[403160639,1769219447272,-161.0,0.0001718,2]
[403160640,1769219447281,-161.0,0.0001718,2]
[403160641,1769219447290,-161.0,0.0001718,3]
[403160642,1769219447300,-161.0,0.0001718,3]
[403160643,1769219447309,-200.0,0.00017271,2]
[403160644,1769219447318,-172.08,0.00017278,2]
[403160645,1769219447327,-558.47,0.00017278,2]
[403160646,1769219447337,-179.83,0.00017278,2]
[403160647,1769219447345,-468.39,0.00017278,2]
[403160648,1769219447355,-357.62,0.000173,2]
[403160649,1769219447363,-484.37,0.000173,2]
[403160650,1769219447372,-252.84,0.000173,2]
[403160651,1769219447383,-179.83,0.000173,2]
[403160652,1769219447393,-150.0,0.000173,2]
[403160653,1769219447407,-484.37,0.000173,2]
[403160654,1769219447416,-484.37,0.000173,2]
[403160655,1769219447425,-164.0,0.000173,3]
[403160656,1769219447434,-165.72,0.000173,3]
[403160657,1769219447443,-202.30955276,0.00017304,2]
[403160658,1769219447452,-2475.92639888,0.00017327,2]
[403160659,1769219447461,-7533.25288006,0.00017327,2]
[403160660,1769219447470,-484.37,0.00017341,2]
[403160661,1769219447479,-638.09,0.00017341,2]
[403160662,1769219447488,-188.0,0.00017392,2]
[403160663,1769219447498,-301.98,0.000174,2]
[403160664,1769219447507,-1189.0,0.00017422,2]
[403160665,1769219447517,-158.45202454,0.00017429,2]
[403160666,1769219447527,-295.0,0.00017462,2]
[403160667,1769219447536,-300.12234076,0.00017469,2]
[403160668,1769219447545,-173.38,0.00017478,2]
[403160669,1769219447555,-150.0,0.00017478,2]
[403160670,1769219447564,-150.73,0.00017478,2]
[403160671,1769219447573,-552.51,0.00017478,2]
[403160672,1769219447582,-468.39,0.00017478,2]
[403160673,1769219447591,-179.83,0.00017478,2]
[403160674,1769219447600,-172.08,0.00017478,2]
[403160675,1769219447609,-1680.0,0.00017479,2]
[403160676,1769219447618,-167.3,0.0001749,2]
[403160677,1769219447627,-318.55236051,0.000175,3]
[403160678,1769219447636,-295.0,0.00017506,2]
[403160679,1769219447645,-2475.92639888,0.00017518,2]
[403160680,1769219447657,-7533.25288006,0.00017518,2]
[403160681,1769219447667,-150.0,0.00017534,2]
[403160682,1769219447676,-150.0,0.00017534,2]
[403160683,1769219447685,-157.52757013,0.00017534,2]
[403160684,1769219447694,-153.44078669,0.00017534,2]
[403160685,1769219447705,-1189.0,0.0001757,2]
[403160686,1769219447717,-155.71047214,0.00017589,2]
[403160687,1769219447726,-152.48032116,0.00017589,2]
[403160688,1769219447735,-1189.0,0.00017626,2]
[403160689,1769219447745,-150.0,0.00017639,2]
[403160690,1769219447754,-173.36,0.00017639,2]
[403160691,1769219447763,-558.47,0.00017639,2]
[403160692,1769219447772,-172.08,0.00017639,2]
[403160693,1769219447781,-195.72,0.00017639,2]
[403160694,1769219447791,-468.39,0.00017639,2]
[403160695,1769219447800,-558.47,0.00017639,2]
[403160696,1769219447809,-179.83,0.00017639,2]
[403160697,1769219447819,-172.08,0.00017639,2]
[403160698,1769219447829,-150.0,0.00017639,2]
[403160699,1769219447839,-468.39,0.00017639,2]
[403160700,1769219447852,-172.08,0.00017639,2]
[403160701,1769219447861,-179.83,0.00017639,2]
[403160702,1769219447871,-1144.16,0.00017639,2]
[403160703,1769219447881,-179.83,0.00017639,2]
[403160704,1769219447890,-468.39,0.00017639,2]
[403160705,1769219447900,-150.0,0.00017639,2]
[403160706,1769219447910,-172.08,0.00017639,2]
[403160707,1769219447919,-179.83,0.00017639,2]
[403160708,1769219447929,-169.55,0.00017639,2]
[403160709,1769219447938,-558.47,0.00017639,2]
[403160710,1769219447948,-179.83,0.00017639,2]
[403160711,1769219447958,-935.97,0.00017639,2]
[403160712,1769219447967,-150.0,0.00017639,2]
[403160713,1769219447976,-179.83,0.00017639,2]
[403160714,1769219447986,-179.83,0.00017639,2]
[403160715,1769219447995,-468.39,0.00017639,2]
[403160716,1769219448005,-468.39,0.00017639,2]
[403160717,1769219448015,-349.79,0.00017639,2]
[403160718,1769219448024,-468.39,0.00017639,2]
[403160719,1769219448034,-468.39,0.00017639,2]
[403160720,1769219448043,-1593.3651745,0.0001764,2]
[403160721,1769219448056,-506.88246395,0.00017647,2]
[403160722,1769219448066,-151.0,0.00017647,2]
[403160723,1769219448075,-885.86649465,0.00017647,2]
[403160724,1769219448084,-177.87389775,0.00017647,2]
[403160725,1769219448093,-181.08010149,0.00017647,2]
[403160726,1769219448102,-166.47192819,0.00017673,7]
[403160727,1769219448111,-1000.0,0.000177,2]
[403160728,1769219448121,-1000.0,0.00017709,2]
[403160729,1769219448130,-2475.92639888,0.00017709,2]
[403160730,1769219448139,-7533.25288006,0.00017709,2]
[403160731,1769219448148,-295.0,0.00017717,2]
[403160732,1769219448157,-185.0504991,0.0001772,2]
[403160733,1769219448167,-326.45101514,0.0001772,2]
[403160734,1769219448176,-488.3511949,0.0001772,2]
[403160735,1769219448186,-660.7557,0.0001772,2]
[403160736,1769219448195,-929.63069455,0.0001773,2]
[403160737,1769219448204,-1000.0,0.00017757,2]
[403160738,1769219448214,-200.0,0.00017757,2]
[403160739,1769219448223,-1000.0,0.0001779,2]
[403160740,1769219448232,-500.0,0.00017799,2]
[403160741,1769219448244,-500.0,0.00017799,3]
[403160742,1769219448254,-500.0,0.00017799,4]
[403160743,1769219448263,-500.0,0.00017799,5]
[403160744,1769219448272,-6757.1295707,0.000178,3]
[403160745,1769219448281,-1000.0,0.000178,2]
[403160746,1769219448290,-150.0,0.00017808,2]
[403160747,1769219448299,-293.94682,0.0001782,2]
[403160748,1769219448309,-293.94683,0.0001782,2]
[403160749,1769219448318,-231.38369303,0.0001782,2]
[403160750,1769219448328,-6676.54205292,0.0001783,2]
[403160751,1769219448338,-1000.0,0.0001783,2]
[403160752,1769219448347,-1000.0,0.0001784,2]
[403160753,1769219448357,-1000.0,0.00017842,2]
[403160754,1769219448366,-200.0,0.00017856,2]
[403160755,1769219448376,-150.0,0.00017863,2]
[403160756,1769219448386,-242.66118906,0.00017873,2]
[403160757,1769219448395,-1000.0,0.00017877,2]
[403160758,1769219448404,-1000.0,0.00017884,2]
[403160759,1769219448413,-1000.0,0.00017898,2]
[403160760,1769219448423,-588.93419664,0.00017899,6]
[403160761,1769219448432,-150.0,0.000179,2]
[403160762,1769219448443,-10043.0318,0.000179,2]
[403160763,1769219448452,-1000.0,0.000179,2]
[403160764,1769219448462,-7740.619,0.000179,2]
[403160765,1769219448471,-191.3897468,0.000179,2]
[403160766,1769219448480,-2475.92639888,0.000179,2]
[403160767,1769219448489,-7533.25288006,0.000179,2]
[403160768,1769219448499,-1000.0,0.000179,2]
[403160769,1769219448508,-3557.82924276,0.000179,2]
[403160770,1769219448518,-1693.0,0.000179,2]
[403160771,1769219448528,-1421.8,0.00017908,2]
[403160772,1769219448537,-295.0,0.00017911,2]
[403160773,1769219448546,-200.0,0.00017916,2]
[403160774,1769219448555,-150.0,0.00017918,2]
[403160775,1769219448564,-1000.0,0.00017918,2]
[403160776,1769219448573,-1000.0,0.00017926,2]
[403160777,1769219448582,-1000.0,0.00017933,2]
[403160778,1769219448590,-1000.0,0.0001794,2]
[403160779,1769219448599,-1000.0,0.00017955,2]
[403160780,1769219448609,-326.51,0.00017961,2]
[403160781,1769219448618,-500.0,0.0001797,2]
[403160782,1769219448636,-500.0,0.0001797,2]
[403160783,1769219448647,-500.0,0.0001797,2]
[403160784,1769219448657,-500.0,0.0001797,2]
[403160785,1769219448666,-500.0,0.0001797,2]
[403160786,1769219448675,-701.31337833,0.0001797,2]
[403160787,1769219448685,-700.0,0.0001797,2]
[403160788,1769219448694,-700.0,0.0001797,2]
[403160789,1769219448703,-703.56503107,0.0001797,2]
[403160790,1769219448713,-150.0,0.00017972,2]
[403160791,1769219448726,-304.0,0.00017973,2]
[403160792,1769219448735,-500.0,0.00017973,2]
[403160793,1769219448744,-150.0,0.00017973,2]
[403160794,1769219449058,-500.0,0.00017982,2]
[403160795,1769219449068,-300.12234076,0.0001799,2]
[403160796,1769219449077,-300.12234076,0.0001799,2]
[403160797,1769219449091,-249.63829755,0.00017999,2]
[403160798,1769219449100,-16665.6542992,0.00017999,2]
[403160799,1769219449110,-473614.3440332,0.00017999,2]
[403160800,1769219449120,-1861.678934,0.00017999,2]
[403160801,1769219449130,-51160.8738785,0.00017999,2]
[403160802,1769219449139,-300.0,0.00017999,2]
[403160803,1769219449148,-3734.7962651,0.00017999,2]
[403160804,1769219449157,-308.53168343,0.00017999,2]
[403160805,1769219449167,-300.0,0.00017999,2]
[403160806,1769219449177,-300.0,0.00017999,2]
[403160807,1769219449186,-671.57624848,0.00017999,2]
[403160808,1769219449195,-3629834.86559851,0.00018,2]
[403160809,1769219449616,-348.8160714,0.00018,2]
[403160810,1769219449628,-426.03728615,0.00018,2]
[403160811,1769219449733,-364.47543328,0.00018,2]
[403160812,1769219449745,-856.88400231,0.00018,2]
[403160813,1769219450119,-2608.63388952,0.00018,2]
[403160815,1769219566327,3757.12957072,0.000226,120]
[403160816,1769219609234,157.33,0.0001322,2]
[403160877,1769219844021,-157.33,0.00014873,2]
[403160878,1769219844042,-500.0,0.00015957,2]
[403160879,1769219844067,-1200.0,0.00016037,2]
[403160880,1769219844089,-550.0,0.00016037,2]
[403160881,1769219844111,-188.0,0.00016037,2]
[403160882,1769219844133,-1000.0,0.00016038,2]
[403160883,1769219844155,-921.42394177,0.00016038,2]
[403160884,1769219844177,-2500.0,0.00016038,2]
[403160885,1769219844200,-52.32674368,0.00016038,2]
[403160890,1769220227663,-3004.49,0.0001533,2]
[403160891,1769220227683,-480.51,0.00015371,2]
[403160898,1769220407122,-176.92768984,0.00015291,2]
[403160907,1769220632244,-575.5876787,0.0001524,2]
[403160909,1769220632308,-1861.05317886,0.0001524,2]
[403160910,1769220632320,-497.55228091,0.0001524,2]
[403160911,1769220632332,-305.80686153,0.0001524,2]
[403160912,1769220632342,-23.07231016,0.00015291,2]
[403160913,1769220632352,-277.60796364,0.00015291,2]
[403160914,1769220632363,-634.45289435,0.00015291,2]
[403160915,1769220632374,-87.93914201,0.00015291,2]
[403160916,1769220632383,-415.48819744,0.00015371,2]
[403160917,1769220632394,-584.79955105,0.00015371,2]
[403160918,1769220632420,-371.62225151,0.00015371,2]
[403160919,1769220632429,-1200.0,0.00015529,2]
[403160920,1769220632438,-188.0,0.0001553,2]
[403160921,1769220632447,-1165.88867847,0.00015531,2]
[403160922,1769220632458,-412.77728069,0.00015531,2]
[403160923,1769220632486,-6903.98404084,0.00015531,2]
[403160924,1769220632495,-166.66,0.00015855,2]
[403160925,1769220632505,-151.0,0.00015935,2]
[403160926,1769220632514,-500.0,0.00015937,2]
[403160927,1769220632523,-186.72623446,0.00015937,2]
[403160928,1769220632532,-225.80527841,0.00015937,2]
[403160929,1769220632542,-279.6824085,0.00015937,2]
[403160930,1769220632551,-1000000.0,0.00015938,2]
[403160931,1769220632560,-150.0,0.00016,2]
[403160932,1769220632569,-550.0,0.00016037,2]
[403160933,1769220632578,-1735.559,0.00016038,2]
[403160934,1769220632587,-154.296,0.00016038,2]
[403160935,1769220632596,-9999.99,0.00016038,2]
[403160936,1769220632605,-999.99,0.00016038,2]
[403160937,1769220632614,-276.42190716,0.00016038,2]
[403160938,1769220632624,-7533.25288012,0.00016038,2]
[403160939,1769220632632,-152.23612417,0.00016038,2]
[403160940,1769220632642,-150.99,0.00016038,2]
[403160941,1769220632651,-2099.91,0.00016038,2]
[403160942,1769220632660,-1200.01,0.00016038,2]
[403160943,1769220632669,-9999.99,0.00016038,2]
[403160944,1769220632678,-9990.70505632,0.00016038,2]
[403160945,1769220632687,-921.42394177,0.00016038,2]
[403160946,1769220632696,-1000.0,0.00016038,2]
[403160947,1769220632705,-2500.0,0.00016038,2]
[403160948,1769220632714,-235.0,0.00016054,2]
[403160949,1769220632723,-1162.94349025,0.00016057,2]
[403160950,1769220632731,-657.28274189,0.00016071,2]
[403160951,1769220632741,-375.21989763,0.00016086,2]
[403160952,1769220632749,-150.0,0.000161,2]
[403160953,1769220632758,-3645.51,0.00016116,2]
[403160954,1769220632767,-150.99,0.00016116,2]
[403160955,1769220632776,-203.02690976,0.00016128,2]
[403160956,1769220632785,-500.0,0.00016128,2]
[403160957,1769220632794,-500.0,0.00016128,2]
[403160958,1769220632803,-500.0,0.00016128,2]
[403160959,1769220632812,-500.0,0.00016128,2]
[403160960,1769220632821,-515.637625,0.00016128,2]
[403160961,1769220632831,-522.39299277,0.00016128,2]
[403160962,1769220632840,-151.0,0.00016128,2]
[403160963,1769220632849,-151.0,0.00016128,2]
[403160964,1769220632858,-162.11666966,0.00016128,2]
[403160965,1769220632867,-1614.12576763,0.00016137,5]
[403160966,1769220632877,-513.11478339,0.00016137,2]
[403160967,1769220632886,-500.0,0.00016137,2]
[403160968,1769220632895,-500.0,0.00016137,2]
[403160969,1769220632903,-533.28780485,0.00016137,2]
[403160970,1769220632913,-500.0,0.00016137,2]
[403160971,1769220632922,-520.13473548,0.00016137,2]
[403160972,1769220633209,-521.19338893,0.00016137,2]
[403160973,1769220633245,-500.0,0.00016137,2]
[403160974,1769220633255,-500.0,0.00016137,3]
[403160975,1769220633264,-453.80142044,0.00016137,4]
[403160976,1769220633296,-46.19857956,0.00016137,4]
[403160977,1769220633305,-500.0,0.00016137,5]
[403160978,1769220633317,-135.89293871,0.00016137,2]
[403160979,1769220633408,-374.23262666,0.00016137,2]
[403160980,1769220633417,-284.91309164,0.00016137,2]
[403160981,1769220633430,-232.2183163,0.00016137,2]
[403160982,1769220633439,-389.13342518,0.00016137,2]
[403160983,1769220633448,-521.02226168,0.00016137,2]
[403160984,1769220633457,-638.41868823,0.00016137,2]
[403160985,1769220633466,-500.0,0.00016138,2]
[403160986,1769220633477,-912.0,0.00016159,2]
[403160987,1769220633486,-93.13838561,0.00016166,2]
[403160988,1769220633497,-562.249999,0.00016166,2]
[403160989,1769220633508,-816.61161539,0.00016166,2]
[403160990,1769220633517,-221.59306979,0.00016199,2]
[403160991,1769220633528,-790.40693021,0.00016199,2]
[403160992,1769220633537,-150.0,0.000162,2]
[403160993,1769220633546,-7533.25288006,0.00016245,2]
[403160994,1769220633555,-502.18320891,0.00016251,2]
[403160995,1769220633564,-500.0,0.00016251,2]
[403160996,1769220633572,-500.0,0.00016251,2]
[403160997,1769220633581,-511.66434871,0.00016251,2]
[403160998,1769220633592,-505.26513508,0.00016251,2]
[403160999,1769220633602,-500.0,0.00016251,2]
[403161000,1769220633613,-500.0,0.00016251,2]
[403161001,1769220633623,-513.10765434,0.00016251,2]
[403161002,1769220633633,-511.68014274,0.00016251,2]
[403161003,1769220633642,-295.76,0.00016251,2]
[403161004,1769220633651,-150.0,0.000163,2]
[403161005,1769220633660,-276.42190715,0.00016348,2]
[403161006,1769220633669,-166.66,0.00016379,2]
[403161007,1769220633678,-150.0,0.000164,2]
[403161008,1769220633688,-209.71,0.00016408,2]
[403161009,1769220633697,-554.95462682,0.00016412,2]
[403161010,1769220633706,-500.0,0.00016433,2]
[403161011,1769220633715,-161.04240695,0.00016438,2]
[403161012,1769220633726,-1000.0,0.00016438,2]
[403161013,1769220633735,-151.0,0.00016438,2]
[403161014,1769220633744,-165.24,0.0001644,2]
[403161015,1769220633754,-7533.25288006,0.00016452,2]
[403161016,1769220633763,-150.0,0.000165,2]
[403161017,1769220633771,-157.33,0.00016525,2]
[403161018,1769220633780,-295.76,0.00016525,2]
[403161019,1769220633790,-465.01,0.00016532,2]
[403161020,1769220633800,-150.0,0.00016578,2]
[403161021,1769220633810,-1000.0,0.000166,2]
[403161022,1769220633820,-997.0,0.000166,2]
[403161023,1769220633830,-150.0,0.000166,2]
[403161024,1769220633840,-276.42190715,0.00016659,2]
[403161025,1769220633849,-7533.25288006,0.00016659,2]
[403161026,1769220633858,-162.31226797,0.000167,2]
[403161027,1769220633867,-1000.0,0.00016712,2]
[403161028,1769220633875,-166.41,0.00016712,2]
[403161029,1769220633885,-849.0,0.0001672,2]
[403161030,1769220633893,-195.0,0.00016764,2]
[403161031,1769220633903,-295.76,0.00016799,2]
[403161032,1769220633912,-253.80877841,0.0001682,2]
[403161033,1769220633920,-5233.0,0.00016854,2]
[403161034,1769220633929,-459.66399868,0.00016855,2]
[403161035,1769220633939,-4360.91949778,0.00016866,2]
[403161036,1769220633950,-7533.25288006,0.00016866,2]
[403161037,1769220633959,-758.03,0.00016899,2]
[403161038,1769220633968,-1000.0,0.000169,2]
[403161039,1769220633977,-166.66,0.00016902,2]
[403161040,1769220633986,-5233.0,0.00016921,2]
[403161041,1769220633995,-276.42190715,0.00016969,2]
[403161042,1769220634004,-250.0,0.00017,2]
[403161043,1769220634013,-225.0,0.00017025,2]
[403161044,1769220634022,-484.52,0.00017041,2]
[403161045,1769220634031,-484.52,0.00017041,2]
[403161046,1769220634041,-612.72,0.00017041,2]
[403161047,1769220634050,-612.72,0.00017041,2]
[403161048,1769220634059,-484.52,0.00017041,2]
[403161049,1769220634068,-484.52,0.00017041,2]
[403161050,1769220634077,-605.42,0.00017041,2]
[403161051,1769220634086,-484.52,0.00017041,2]
[403161052,1769220634100,-484.52,0.00017041,2]
[403161053,1769220634109,-5233.0,0.00017051,2]
[403161054,1769220634118,-1680.0,0.00017072,2]
[403161055,1769220634127,-4360.91949778,0.00017072,2]
[403161056,1769220634137,-7533.25288006,0.00017072,2]
[403161057,1769220634146,-295.76,0.00017073,2]
[403161058,1769220634156,-578.20924308,0.00017099,2]
[403161059,1769220634165,-359.76179104,0.00017099,2]
[403161060,1769220634175,-151.0,0.00017099,2]
[403161061,1769220634183,-721.12765535,0.00017099,2]
[403161062,1769220634192,-854.2589148,0.00017099,2]
[403161063,1769220634202,-840.76606737,0.00017099,2]
[403161064,1769220634211,-500.0,0.00017099,2]
[403161065,1769220634220,-500.0,0.00017099,2]
[403161066,1769220634230,-500.0,0.00017099,2]
[403161067,1769220634244,-500.0,0.00017099,2]
[403161068,1769220634255,-500.0,0.00017099,2]
[403161069,1769220634265,-500.0,0.00017099,2]
[403161070,1769220634275,-500.0,0.00017099,2]
[403161071,1769220634285,-500.0,0.00017099,2]
[403161072,1769220634294,-500.0,0.00017099,2]
[403161073,1769220634303,-500.0,0.00017099,2]
[403161074,1769220634312,-500.0,0.00017099,2]
[403161075,1769220634323,-500.0,0.00017099,2]
[403161076,1769220634332,-500.0,0.00017099,2]
[403161077,1769220634342,-500.0,0.00017099,2]
[403161078,1769220634351,-500.0,0.00017099,2]
[403161079,1769220634360,-500.0,0.00017099,2]
[403161080,1769220634369,-500.0,0.00017099,2]
[403161081,1769220634378,-500.0,0.00017099,2]
[403161082,1769220634388,-500.0,0.00017099,2]
[403161083,1769220634399,-555.87535739,0.00017099,2]
[403161084,1769220634409,-500.0,0.00017099,2]
[403161085,1769220634418,-500.0,0.00017099,2]
[403161086,1769220634427,-500.0,0.00017099,2]
[403161087,1769220634435,-250.0,0.00017099,2]
[403161088,1769220634444,-589.05491571,0.00017099,2]
[403161089,1769220634454,-250.0,0.00017099,2]
[403161090,1769220634463,-250.0,0.00017099,2]
[403161091,1769220634472,-250.0,0.00017099,2]
[403161092,1769220634485,-250.0,0.00017099,2]
[403161093,1769220634494,-209.40437684,0.00017099,2]
[403161094,1769220634503,-322.6107,0.00017099,2]
[403161095,1769220634512,-264.91023601,0.00017099,2]
[403161096,1769220634521,-250.0,0.00017099,2]
[403161097,1769220634531,-250.0,0.00017099,2]
[403161098,1769220634540,-250.0,0.00017099,2]
[403161099,1769220634550,-250.0,0.00017099,2]
[403161100,1769220634559,-250.0,0.00017099,2]
[403161101,1769220634568,-250.0,0.00017099,2]
[403161102,1769220634577,-250.0,0.00017099,2]
[403161103,1769220634586,-258.63418343,0.00017099,2]
[403161104,1769220634595,-250.0,0.00017099,2]
[403161105,1769220634604,-250.0,0.00017099,2]
[403161106,1769220634613,-263.81899033,0.00017099,2]
[403161107,1769220634622,-250.0,0.00017099,2]
[403161108,1769220634633,-174.61919141,0.00017099,2]
[403161109,1769220634642,-263.73278243,0.00017099,2]
[403161110,1769220634652,-500.0,0.00017099,2]
[403161111,1769220634661,-500.0,0.00017099,2]
[403161112,1769220634670,-500.0,0.00017099,2]
[403161113,1769220634680,-500.0,0.00017099,2]
[403161114,1769220634690,-500.0,0.00017099,2]
[403161115,1769220634700,-151.0,0.00017099,2]
[403161116,1769220634710,-262.4243789,0.00017099,2]
[403161117,1769220634719,-151.0,0.00017099,2]
[403161118,1769220634730,-151.0,0.00017099,2]
[403161119,1769220634741,-151.0,0.00017099,2]
[403161120,1769220634751,-250.0,0.00017099,2]
[403161121,1769220634761,-151.0,0.00017099,2]
[403161122,1769220634771,-250.0,0.00017099,2]
[403161123,1769220634780,-250.0,0.00017099,2]
[403161124,1769220634790,-151.0,0.00017099,2]
[403161125,1769220634800,-250.0,0.00017099,2]
[403161126,1769220634810,-250.0,0.00017099,2]
[403161127,1769220634819,-151.0,0.00017099,2]
[403161128,1769220634828,-250.0,0.00017099,2]
[403161129,1769220634837,-264.90142985,0.00017099,2]
[403161130,1769220634847,-151.0,0.00017099,2]
[403161131,1769220634858,-275.69570179,0.00017099,2]
[403161132,1769220634868,-151.0,0.00017099,2]
[403161133,1769220634877,-151.0,0.00017099,2]
[403161134,1769220634886,-151.0,0.00017099,2]
[403161135,1769220634896,-250.0,0.00017099,2]
[403161136,1769220634905,-250.0,0.00017099,2]
[403161137,1769220634915,-250.0,0.00017099,2]
[403161138,1769220634925,-250.0,0.00017099,2]
[403161139,1769220634934,-250.0,0.00017099,2]
[403161140,1769220634944,-250.0,0.00017099,2]
[403161141,1769220634953,-250.0,0.00017099,2]
[403161142,1769220634963,-250.0,0.00017099,2]
[403161143,1769220634972,-250.0,0.00017099,2]
[403161144,1769220634982,-250.0,0.00017099,2]
[403161145,1769220634991,-250.0,0.00017099,2]
[403161146,1769220635000,-2468.0,0.00017099,2]
[403161147,1769220635009,-274.29477852,0.00017099,2]
[403161148,1769220635019,-817.0,0.0001716,2]
[403161149,1769220635028,-150.73,0.00017178,2]
[403161150,1769220635037,-558.65,0.00017178,2]
[403161151,1769220635047,-179.89,0.00017178,2]
[403161152,1769220635057,-150.0,0.00017178,2]
[403161153,1769220635066,-468.53,0.00017178,2]
[403161154,1769220635075,-1230.89,0.00017178,2]
[403161155,1769220635085,-558.65,0.00017178,2]
[403161156,1769220635094,-179.89,0.00017178,2]
[403161157,1769220635104,-150.0,0.00017178,2]